[Event "Early-Titled-Tuesday-Blitz-March-26-2024"]
[Site "Chess.com"]
[Date "2024.03.26"]
[Round "10"]
[White "Goryachkina"]
[Black "artin10862"]
[Result "0-1"]
[WhiteElo "2683"]
[BlackElo "2898"]
[TimeControl "180+1"]
[EndTime "9:54:43 PDT"]
[Termination "artin10862 won on time"]

1. e4 {[%clk 0:02:59.9]} 1... e5 {[%clk 0:02:59.3]} 2. Nf3 {[%clk 0:02:59.8]}
2... Nc6 {[%clk 0:02:59.8]} 3. Bc4 {[%clk 0:02:59.8]} 3... Bc5 {[%clk
0:02:58.9]} 4. c3 {[%clk 0:02:57.9]} 4... Nf6 {[%clk 0:02:57.6]} 5. d3 {[%clk
0:02:57.4]} 5... d6 {[%clk 0:02:54.6]} 6. Nbd2 {[%clk 0:02:56]} 6... a6 {[%clk
0:02:48.1]} 7. Bb3 {[%clk 0:02:53]} 7... O-O {[%clk 0:02:44.9]} 8. h3 {[%clk
0:02:51.3]} 8... Ba7 {[%clk 0:02:37.1]} 9. O-O {[%clk 0:02:46]} 9... h6 {[%clk
0:02:29.4]} 10. Re1 {[%clk 0:02:44.2]} 10... Re8 {[%clk 0:02:25.2]} 11. Nf1
{[%clk 0:02:40]} 11... Be6 {[%clk 0:02:25.1]} 12. Bxe6 {[%clk 0:02:33.7]} 12...
Rxe6 {[%clk 0:02:24.9]} 13. Ng3 {[%clk 0:02:33.3]} 13... d5 {[%clk 0:02:15.1]}
14. Qe2 {[%clk 0:02:30.4]} 14... Ne7 {[%clk 0:02:07.6]} 15. Nh4 {[%clk 0:02:26]}
15... Qd7 {[%clk 0:01:57.9]} 16. Be3 {[%clk 0:02:01.6]} 16... Bxe3 {[%clk
0:01:49.7]} 17. Qxe3 {[%clk 0:02:01.4]} 17... Rd8 {[%clk 0:01:49.7]} 18. Qe2
{[%clk 0:01:47.2]} 18... g6 {[%clk 0:01:36.3]} 19. Nf3 {[%clk 0:01:39.5]} 19...
Nc6 {[%clk 0:01:30.9]} 20. Rad1 {[%clk 0:01:36.4]} 20... d4 {[%clk 0:01:18.5]}
21. c4 {[%clk 0:01:29.8]} 21... Qe7 {[%clk 0:01:08.5]} 22. Nh2 {[%clk
0:01:24.6]} 22... h5 {[%clk 0:01:04.8]} 23. Nf3 {[%clk 0:01:19.9]} 23... Nd7
{[%clk 0:01:03.6]} 24. Qd2 {[%clk 0:01:16.5]} 24... Nc5 {[%clk 0:00:56.3]} 25.
Qh6 {[%clk 0:00:58.7]} 25... Qf8 {[%clk 0:00:43.1]} 26. Qg5 {[%clk 0:00:58.9]}
26... Kh7 {[%clk 0:00:37.7]} 27. b3 {[%clk 0:00:26.4]} 27... f6 {[%clk
0:00:24.3]} 28. Qd2 {[%clk 0:00:25]} 28... Re7 {[%clk 0:00:21]} 29. Nh4 {[%clk
0:00:23.1]} 29... Ne6 {[%clk 0:00:20.4]} 30. Ne2 {[%clk 0:00:22.2]} 30... Rf7
{[%clk 0:00:18.2]} 31. f4 {[%clk 0:00:19.8]} 31... exf4 {[%clk 0:00:14.6]} 32.
Nxf4 {[%clk 0:00:20]} 32... Nxf4 {[%clk 0:00:13.6]} 33. Qxf4 {[%clk 0:00:20.7]}
33... Ne5 {[%clk 0:00:14.2]} 34. Nf3 {[%clk 0:00:20.4]} 34... Re8 {[%clk
0:00:10.8]} 35. Rf1 {[%clk 0:00:19.2]} 35... Qd6 {[%clk 0:00:07.8]} 36. Qh4
{[%clk 0:00:14.4]} 36... Kg7 {[%clk 0:00:07.8]} 37. Nxe5 {[%clk 0:00:12.3]}
37... Rxe5 {[%clk 0:00:06.9]} 38. Rf3 {[%clk 0:00:12]} 38... b5 {[%clk
0:00:06.8]} 39. Rdf1 {[%clk 0:00:11.9]} 39... bxc4 {[%clk 0:00:06.5]} 40. bxc4
{[%clk 0:00:11.7]} 40... Rg5 {[%clk 0:00:06.8]} 41. Qf2 {[%clk 0:00:06.9]} 41...
Ra5 {[%clk 0:00:04.8]} 42. Rf4 {[%clk 0:00:04.3]} 42... Re5 {[%clk 0:00:04.6]}
43. Kh1 {[%clk 0:00:04.3]} 43... c5 {[%clk 0:00:05]} 44. Qh4 {[%clk 0:00:04.3]}
44... Re6 {[%clk 0:00:03.6]} 45. Qf2 {[%clk 0:00:04.5]} 45... Qe5 {[%clk
0:00:03.7]} 46. Rf3 {[%clk 0:00:05]} 46... Rb7 {[%clk 0:00:03.8]} 47. Qc2 {[%clk
0:00:03.1]} 47... Reb6 {[%clk 0:00:04]} 48. Qa4 {[%clk 0:00:03.1]} 48... Qe7
{[%clk 0:00:03.6]} 49. Qa5 {[%clk 0:00:03]} 49... Qd6 {[%clk 0:00:02.7]} 50. Qa4
{[%clk 0:00:03.2]} 50... Rb1 {[%clk 0:00:02.2]} 51. Qe8 {[%clk 0:00:01.9]} 51...
Rxf1+ {[%clk 0:00:01.8]} 52. Rxf1 {[%clk 0:00:02.8]} 52... h4 {[%clk 0:00:02.3]}
53. Qc8 {[%clk 0:00:02.7]} 53... Rc7 {[%clk 0:00:02]} 54. Qb8 {[%clk 0:00:02.9]}
54... Qg3 {[%clk 0:00:02.3]} 55. Qb6 {[%clk 0:00:02.6]} 55... Rf7 {[%clk
0:00:02.2]} 56. Qxa6 {[%clk 0:00:03.1]} 56... Qxd3 {[%clk 0:00:02.4]} 57. Rg1
{[%clk 0:00:02.9]} 57... Qxe4 {[%clk 0:00:02.6]} 58. Qd6 {[%clk 0:00:03.4]}
58... Qe5 {[%clk 0:00:01.8]} 59. Qc6 {[%clk 0:00:03.8]} 59... d3 {[%clk
0:00:02.2]} 60. Qf3 {[%clk 0:00:02.4]} 60... Rd7 {[%clk 0:00:02]} 61. Rd1 {[%clk
0:00:02.5]} 61... d2 {[%clk 0:00:02.5]} 62. a4 {[%clk 0:00:01.7]} 62... Rd4
{[%clk 0:00:01.9]} 63. a5 {[%clk 0:00:01.5]} 63... Qe1+ {[%clk 0:00:02.3]} 64.
Kh2 {[%clk 0:00:01.6]} 64... Qe5+ {[%clk 0:00:03]} 65. Kh1 {[%clk 0:00:01.8]}
65... Rf4 {[%clk 0:00:03.4]} 0-1

[Event "Early-Titled-Tuesday-Blitz-March-26-2024"]
[Site "Chess.com"]
[Date "2024.03.26"]
[Round "10"]
[White "Matrix3x3a"]
[Black "MatthewG-p4p"]
[Result "0-1"]
[WhiteElo "2634"]
[BlackElo "2874"]
[TimeControl "180+1"]
[EndTime "9:54:52 PDT"]
[Termination "MatthewG-p4p won by resignation"]

1. d4 {[%clk 0:03:00.9]} 1... Nf6 {[%clk 0:02:54]} 2. c4 {[%clk 0:03:01.2]} 2...
c5 {[%clk 0:02:53.2]} 3. Nf3 {[%clk 0:03:01]} 3... cxd4 {[%clk 0:02:52.9]} 4.
Nxd4 {[%clk 0:03:01.9]} 4... e5 {[%clk 0:02:53.5]} 5. Nb5 {[%clk 0:03:01.7]}
5... d5 {[%clk 0:02:53.1]} 6. cxd5 {[%clk 0:03:01]} 6... Bc5 {[%clk 0:02:53.3]}
7. e3 {[%clk 0:02:59.8]} 7... O-O {[%clk 0:02:50.8]} 8. N5c3 {[%clk 0:02:59.2]}
8... e4 {[%clk 0:02:43.8]} 9. Be2 {[%clk 0:02:58.7]} 9... Re8 {[%clk 0:02:41.6]}
10. O-O {[%clk 0:02:58.9]} 10... Bf5 {[%clk 0:02:40.5]} 11. a3 {[%clk
0:02:58.3]} 11... Nbd7 {[%clk 0:02:39.2]} 12. Nd2 {[%clk 0:02:55.4]} 12... Qe7
{[%clk 0:02:38.7]} 13. b4 {[%clk 0:02:54]} 13... Bd6 {[%clk 0:02:37.4]} 14. Nc4
{[%clk 0:02:41.6]} 14... Bb8 {[%clk 0:02:36.2]} 15. d6 {[%clk 0:02:36]} 15...
Qe6 {[%clk 0:02:35]} 16. Bb2 {[%clk 0:02:34.8]} 16... a6 {[%clk 0:02:30.3]} 17.
a4 {[%clk 0:02:15.4]} 17... Ba7 {[%clk 0:02:12.9]} 18. Rc1 {[%clk 0:02:08.4]}
18... Rac8 {[%clk 0:02:12.3]} 19. Na5 {[%clk 0:01:58.9]} 19... Ne5 {[%clk
0:01:26.3]} 20. Qb3 {[%clk 0:01:35.4]} 20... Qd7 {[%clk 0:01:21.1]} 21. Rfd1
{[%clk 0:01:33.2]} 21... Nd3 {[%clk 0:01:12.4]} 22. Bxd3 {[%clk 0:01:18.1]}
22... exd3 {[%clk 0:01:13.3]} 23. Nd5 {[%clk 0:01:17.6]} 23... Rxc1 {[%clk
0:00:39.8]} 24. Nxf6+ {[%clk 0:01:15.8]} 24... gxf6 {[%clk 0:00:40]} 25. Bxc1
{[%clk 0:01:13.3]} 25... Qxd6 {[%clk 0:00:21.8]} 26. Nxb7 {[%clk 0:01:10]} 26...
Qc7 {[%clk 0:00:21.6]} 27. Nc5 {[%clk 0:01:09.8]} 27... Bxc5 {[%clk 0:00:19.5]}
28. bxc5 {[%clk 0:01:09.5]} 28... Qxc5 {[%clk 0:00:20.4]} 29. Bd2 {[%clk
0:00:54]} 29... Qc2 {[%clk 0:00:20.4]} 30. Qb1 {[%clk 0:00:46.7]} 30... Qxa4
{[%clk 0:00:15.4]} 31. f3 {[%clk 0:00:44.6]} 31... Be6 {[%clk 0:00:09.4]} 32.
Rc1 {[%clk 0:00:40.8]} 32... Rd8 {[%clk 0:00:07]} 33. Rc3 {[%clk 0:00:34.4]}
33... Qd7 {[%clk 0:00:04.8]} 34. Ra3 {[%clk 0:00:30]} 34... Rc8 {[%clk
0:00:04.4]} 35. Qxd3 {[%clk 0:00:23.2]} 35... Qxd3 {[%clk 0:00:04.5]} 36. Rxd3
{[%clk 0:00:23.6]} 36... Ra8 {[%clk 0:00:05.4]} 37. Ba5 {[%clk 0:00:21.6]} 37...
f5 {[%clk 0:00:05.7]} 38. Kf2 {[%clk 0:00:20.2]} 38... Kf8 {[%clk 0:00:06]} 39.
e4 {[%clk 0:00:17.7]} 39... fxe4 {[%clk 0:00:06.1]} 40. fxe4 {[%clk 0:00:18.6]}
40... Ke7 {[%clk 0:00:06.7]} 41. Ke3 {[%clk 0:00:18.9]} 41... Rb8 {[%clk
0:00:07.4]} 42. Ra3 {[%clk 0:00:18.5]} 42... Bc4 {[%clk 0:00:06.8]} 43. Kd4
{[%clk 0:00:18.5]} 43... Bb5 {[%clk 0:00:07.1]} 44. Bb4+ {[%clk 0:00:17.5]}
44... Ke6 {[%clk 0:00:07.8]} 45. e5 {[%clk 0:00:17.3]} 45... Rd8+ {[%clk
0:00:08.1]} 46. Bd6 {[%clk 0:00:17.2]} 46... Rg8 {[%clk 0:00:08.2]} 47. Rg3
{[%clk 0:00:16.3]} 47... Rc8 {[%clk 0:00:07.5]} 48. Rc3 {[%clk 0:00:15.5]} 48...
Rd8 {[%clk 0:00:05.9]} 49. Rc7 {[%clk 0:00:14.4]} 49... f6 {[%clk 0:00:03.4]}
50. Re7+ {[%clk 0:00:14.5]} 50... Kf5 {[%clk 0:00:04.1]} 51. Rf7 {[%clk
0:00:14.3]} 51... a5 {[%clk 0:00:03.8]} 52. Rxf6+ {[%clk 0:00:14.5]} 52... Kg5
{[%clk 0:00:04.7]} 53. Rf3 {[%clk 0:00:13.7]} 53... Bc6 {[%clk 0:00:05]} 54. Ra3
{[%clk 0:00:13.6]} 54... a4 {[%clk 0:00:05.5]} 55. Kc5 {[%clk 0:00:13.3]} 55...
Bd7 {[%clk 0:00:06.3]} 56. e6 {[%clk 0:00:13.2]} 56... Rc8+ {[%clk 0:00:02.8]}
57. Kd5 {[%clk 0:00:13.5]} 57... Bc6+ {[%clk 0:00:03.3]} 58. Ke5 {[%clk
0:00:13.7]} 58... Re8 {[%clk 0:00:02.4]} 59. e7 {[%clk 0:00:14.1]} 59... Kg6
{[%clk 0:00:02.7]} 60. g4 {[%clk 0:00:14.4]} 60... Kf7 {[%clk 0:00:03.2]} 61. h4
{[%clk 0:00:14.7]} 61... Bd7 {[%clk 0:00:04.1]} 62. g5 {[%clk 0:00:14.9]} 62...
Ra8 {[%clk 0:00:04.5]} 63. h5 {[%clk 0:00:15.1]} 63... Ra5+ {[%clk 0:00:04.5]}
64. Ke4 {[%clk 0:00:13.4]} 64... Rxg5 {[%clk 0:00:05]} 65. Bf4 {[%clk
0:00:12.1]} 65... Rxh5 {[%clk 0:00:05.3]} 66. Re3 {[%clk 0:00:11.5]} 66... Kxe7
{[%clk 0:00:05.4]} 67. Be5 {[%clk 0:00:11.2]} 67... Ke6 {[%clk 0:00:05.5]} 68.
Bd4 {[%clk 0:00:11.1]} 68... Bc6+ {[%clk 0:00:05.4]} 69. Kd3+ {[%clk 0:00:11.5]}
69... Kd7 {[%clk 0:00:05.9]} 70. Rg3 {[%clk 0:00:10.9]} 70... Bb5+ {[%clk
0:00:05.9]} 71. Kc3 {[%clk 0:00:10.6]} 71... Bc6 {[%clk 0:00:06.3]} 72. Re3
{[%clk 0:00:10.9]} 72... Kd6 {[%clk 0:00:06.6]} 73. Rg3 {[%clk 0:00:10.8]} 73...
Rf5 {[%clk 0:00:07]} 74. Rh3 {[%clk 0:00:10.9]} 74... h5 {[%clk 0:00:07.6]} 75.
Rh4 {[%clk 0:00:10.9]} 75... Be8 {[%clk 0:00:07.2]} 76. Kc4 {[%clk 0:00:11.1]}
76... Rf1 {[%clk 0:00:07.2]} 77. Kd3 {[%clk 0:00:11.2]} 77... Rd1+ {[%clk
0:00:07.5]} 78. Ke4 {[%clk 0:00:11.6]} 78... Bg6+ {[%clk 0:00:07.7]} 79. Ke3
{[%clk 0:00:11.3]} 79... Kd5 {[%clk 0:00:08.4]} 80. Bb2 {[%clk 0:00:09.8]} 80...
Rd3+ {[%clk 0:00:09]} 81. Kf4 {[%clk 0:00:09.3]} 81... Rb3 {[%clk 0:00:09.6]}
82. Bf6 {[%clk 0:00:08.9]} 82... a3 {[%clk 0:00:10.2]} 83. Kg5 {[%clk
0:00:09.3]} 83... Be8 {[%clk 0:00:10.2]} 84. Ra4 {[%clk 0:00:09.4]} 84... Bxa4
{[%clk 0:00:09.8]} 0-1

[Event "Early-Titled-Tuesday-Blitz-March-26-2024"]
[Site "Chess.com"]
[Date "2024.03.26"]
[Round "10"]
[White "KuzubovYuriy"]
[Black "FairChess_on_YouTube"]
[Result "1/2-1/2"]
[WhiteElo "2927"]
[BlackElo "3115"]
[TimeControl "180+1"]
[EndTime "9:54:57 PDT"]
[Termination "Game drawn by repetition"]

1. d4 {[%clk 0:03:00.9]} 1... Nf6 {[%clk 0:02:54.6]} 2. c4 {[%clk 0:03:01.5]}
2... d6 {[%clk 0:02:54]} 3. Nf3 {[%clk 0:02:59.6]} 3... g6 {[%clk 0:02:54.1]} 4.
g3 {[%clk 0:02:58.8]} 4... Bg7 {[%clk 0:02:54.2]} 5. Bg2 {[%clk 0:02:59.5]} 5...
O-O {[%clk 0:02:52.9]} 6. O-O {[%clk 0:02:51.3]} 6... Bf5 {[%clk 0:02:52.5]} 7.
Nc3 {[%clk 0:02:49.3]} 7... c6 {[%clk 0:02:52.5]} 8. b3 {[%clk 0:02:45]} 8...
Ne4 {[%clk 0:02:46.6]} 9. Bb2 {[%clk 0:02:43.9]} 9... Nxc3 {[%clk 0:02:46.6]}
10. Bxc3 {[%clk 0:02:44.1]} 10... Be4 {[%clk 0:02:47.2]} 11. Rc1 {[%clk
0:02:38.3]} 11... Nd7 {[%clk 0:02:44.9]} 12. Qd2 {[%clk 0:02:37]} 12... a5
{[%clk 0:02:43.2]} 13. Bh3 {[%clk 0:02:29.4]} 13... Bxf3 {[%clk 0:02:40.8]} 14.
exf3 {[%clk 0:02:30.3]} 14... Nb6 {[%clk 0:02:33.9]} 15. d5 {[%clk 0:02:13.7]}
15... Bxc3 {[%clk 0:02:12.6]} 16. Rxc3 {[%clk 0:02:13.7]} 16... Nd7 {[%clk
0:02:13]} 17. Re1 {[%clk 0:02:03.7]} 17... Nf6 {[%clk 0:02:10.2]} 18. f4 {[%clk
0:01:53.7]} 18... cxd5 {[%clk 0:02:05.3]} 19. cxd5 {[%clk 0:01:53.3]} 19... Re8
{[%clk 0:02:01.5]} 20. f5 {[%clk 0:01:49.8]} 20... Qb6 {[%clk 0:01:53.4]} 21.
Rc4 {[%clk 0:01:33.6]} 21... Kg7 {[%clk 0:01:48.1]} 22. Rh4 {[%clk 0:01:32.5]}
22... h5 {[%clk 0:01:42.7]} 23. fxg6 {[%clk 0:01:30.9]} 23... fxg6 {[%clk
0:01:42.9]} 24. Be6 {[%clk 0:01:26.9]} 24... Rh8 {[%clk 0:01:38.8]} 25. Rc4
{[%clk 0:01:24.3]} 25... Raf8 {[%clk 0:01:36.7]} 26. Rec1 {[%clk 0:01:01.2]}
26... h4 {[%clk 0:01:25.6]} 27. Qd4 {[%clk 0:00:55.7]} 27... Qxd4 {[%clk
0:01:23.6]} 28. Rxd4 {[%clk 0:00:56.6]} 28... hxg3 {[%clk 0:01:12.5]} 29. hxg3
{[%clk 0:00:57.5]} 29... Nh7 {[%clk 0:01:12.9]} 30. f4 {[%clk 0:00:49.8]} 30...
g5 {[%clk 0:00:54]} 31. Rc7 {[%clk 0:00:39.8]} 31... gxf4 {[%clk 0:00:54.1]} 32.
Rxe7+ {[%clk 0:00:38.9]} 32... Kf6 {[%clk 0:00:52.4]} 33. Rxb7 {[%clk
0:00:22.2]} 33... fxg3 {[%clk 0:00:45.3]} 34. Rg4 {[%clk 0:00:14.5]} 34... Ng5
{[%clk 0:00:42.9]} 35. Rxg3 {[%clk 0:00:14.6]} 35... Ne4 {[%clk 0:00:39.1]} 36.
Rf3+ {[%clk 0:00:13.9]} 36... Ke5 {[%clk 0:00:39.1]} 37. Rxf8 {[%clk 0:00:14.1]}
37... Rxf8 {[%clk 0:00:40]} 38. a4 {[%clk 0:00:13.8]} 38... Kd4 {[%clk
0:00:37.6]} 39. Rb5 {[%clk 0:00:12.6]} 39... Rf6 {[%clk 0:00:30.9]} 40. Rxa5
{[%clk 0:00:11.7]} 40... Rg6+ {[%clk 0:00:31.5]} 41. Kh2 {[%clk 0:00:11.6]}
41... Ke3 {[%clk 0:00:31.5]} 42. Ra8 {[%clk 0:00:10.9]} 42... Rh6+ {[%clk
0:00:30.5]} 43. Kg2 {[%clk 0:00:10.3]} 43... Rg6+ {[%clk 0:00:30.8]} 44. Kh3
{[%clk 0:00:08.5]} 44... Kf3 {[%clk 0:00:23.3]} 45. Rf8+ {[%clk 0:00:07.5]}
45... Nf6 {[%clk 0:00:23.9]} 46. Kh2 {[%clk 0:00:07.3]} 46... Kf2 {[%clk
0:00:22.9]} 47. Bh3 {[%clk 0:00:06.9]} 47... Ke3 {[%clk 0:00:22]} 48. a5 {[%clk
0:00:06.6]} 48... Nxd5 {[%clk 0:00:18.7]} 49. a6 {[%clk 0:00:07]} 49... Rg7
{[%clk 0:00:19.4]} 50. Re8+ {[%clk 0:00:05.2]} 50... Kf2 {[%clk 0:00:17.6]} 51.
Rf8+ {[%clk 0:00:05.1]} 51... Ke3 {[%clk 0:00:17.4]} 52. Rd8 {[%clk 0:00:04.9]}
52... Nf4 {[%clk 0:00:14.5]} 53. Rd7 {[%clk 0:00:05.2]} 53... Rg8 {[%clk
0:00:13.9]} 54. Re7+ {[%clk 0:00:05.1]} 54... Kd4 {[%clk 0:00:13.5]} 55. Bf5
{[%clk 0:00:05]} 55... Nd5 {[%clk 0:00:09.3]} 56. Rh7 {[%clk 0:00:04.8]} 56...
Ne3 {[%clk 0:00:08.6]} 57. Bd7 {[%clk 0:00:04.6]} 57... Kc5 {[%clk 0:00:04.9]}
58. Bh3 {[%clk 0:00:02.7]} 58... Kb6 {[%clk 0:00:04.5]} 59. Re7 {[%clk
0:00:02.5]} 59... Nd5 {[%clk 0:00:04]} 60. Rd7 {[%clk 0:00:03]} 60... Kxa6
{[%clk 0:00:03.1]} 61. Rxd6+ {[%clk 0:00:02.5]} 61... Nb6 {[%clk 0:00:03.7]} 62.
Be6 {[%clk 0:00:02.6]} 62... Rg7 {[%clk 0:00:02.4]} 63. Bc4+ {[%clk 0:00:02.7]}
63... Ka5 {[%clk 0:00:02.9]} 64. Rd2 {[%clk 0:00:02.8]} 64... Kb4 {[%clk
0:00:02.8]} 65. Kh3 {[%clk 0:00:03.1]} 65... Re7 {[%clk 0:00:02.9]} 66. Re2
{[%clk 0:00:03.3]} 66... Rc7 {[%clk 0:00:02.6]} 67. Kg4 {[%clk 0:00:03.7]} 67...
Nd7 {[%clk 0:00:02.9]} 68. Kf4 {[%clk 0:00:03.7]} 68... Nc5 {[%clk 0:00:03.3]}
69. Rd2 {[%clk 0:00:03.7]} 69... Re7 {[%clk 0:00:03.1]} 70. Rd5 {[%clk
0:00:03.9]} 70... Re4+ {[%clk 0:00:03]} 71. Kf5 {[%clk 0:00:04.2]} 71... Re1
{[%clk 0:00:03]} 72. Rd8 {[%clk 0:00:04.4]} 72... Kc3 {[%clk 0:00:02.2]} 73. Rc8
{[%clk 0:00:04.3]} 73... Kd4 {[%clk 0:00:02.6]} 74. Rd8+ {[%clk 0:00:04.7]}
74... Kc3 {[%clk 0:00:02.5]} 75. Rc8 {[%clk 0:00:05.4]} 75... Kd4 {[%clk
0:00:03]} 76. Rd8+ {[%clk 0:00:05.8]} 76... Kc3 {[%clk 0:00:03.5]} 1/2-1/2

[Event "Early-Titled-Tuesday-Blitz-March-26-2024"]
[Site "Chess.com"]
[Date "2024.03.26"]
[Round "10"]
[White "NovoselovRoman"]
[Black "Felix-Rose"]
[Result "1-0"]
[WhiteElo "2556"]
[BlackElo "2248"]
[TimeControl "180+1"]
[EndTime "9:55:00 PDT"]
[Termination "NovoselovRoman won by checkmate"]

1. d4 {[%clk 0:03:00.9]} 1... d5 {[%clk 0:02:59.5]} 2. Bf4 {[%clk 0:02:59.3]}
2... Nf6 {[%clk 0:02:59.3]} 3. Nf3 {[%clk 0:02:58.8]} 3... e6 {[%clk 0:02:59.3]}
4. e3 {[%clk 0:02:58.3]} 4... Bd6 {[%clk 0:02:59.7]} 5. Bg3 {[%clk 0:02:56.4]}
5... O-O {[%clk 0:03:00]} 6. Bd3 {[%clk 0:02:55.9]} 6... c5 {[%clk 0:02:59.5]}
7. c3 {[%clk 0:02:56.2]} 7... b6 {[%clk 0:03:00.3]} 8. Nbd2 {[%clk 0:02:56.4]}
8... Ba6 {[%clk 0:03:00.9]} 9. Bxa6 {[%clk 0:02:44.9]} 9... Nxa6 {[%clk
0:03:01.8]} 10. Ne5 {[%clk 0:02:45.6]} 10... b5 {[%clk 0:02:51.3]} 11. a3 {[%clk
0:02:43.2]} 11... Qc7 {[%clk 0:02:47.1]} 12. Qe2 {[%clk 0:02:34.5]} 12... Rab8
{[%clk 0:02:38.5]} 13. a4 {[%clk 0:02:06]} 13... Rb6 {[%clk 0:02:31]} 14. axb5
{[%clk 0:02:04.2]} 14... Nb8 {[%clk 0:02:31.6]} 15. O-O {[%clk 0:01:49.7]} 15...
c4 {[%clk 0:02:23.5]} 16. b3 {[%clk 0:01:17.5]} 16... cxb3 {[%clk 0:02:22.9]}
17. Nxb3 {[%clk 0:01:18]} 17... Ne4 {[%clk 0:02:18.5]} 18. c4 {[%clk 0:01:10.8]}
18... Nxg3 {[%clk 0:02:10.5]} 19. hxg3 {[%clk 0:01:07.6]} 19... Bxe5 {[%clk
0:02:10.7]} 20. dxe5 {[%clk 0:01:06.8]} 20... dxc4 {[%clk 0:02:10.7]} 21. Rfc1
{[%clk 0:01:02.6]} 21... Rxb5 {[%clk 0:02:07.7]} 22. Rxc4 {[%clk 0:00:54.7]}
22... Qxe5 {[%clk 0:02:07.5]} 23. Nd4 {[%clk 0:00:55.2]} 23... a5 {[%clk
0:01:26.7]} 24. Rac1 {[%clk 0:00:48.4]} 24... Rb4 {[%clk 0:01:22.3]} 25. Rc8
{[%clk 0:00:47.9]} 25... g6 {[%clk 0:00:50.8]} 26. Qa2 {[%clk 0:00:22.6]} 26...
Rxc8 {[%clk 0:00:46.2]} 27. Rxc8+ {[%clk 0:00:21.7]} 27... Kg7 {[%clk
0:00:46.7]} 28. Qc2 {[%clk 0:00:17.1]} 28... Qd5 {[%clk 0:00:43.6]} 29. Rc7
{[%clk 0:00:15.2]} 29... e5 {[%clk 0:00:41.1]} 30. Rc5 {[%clk 0:00:10.1]} 30...
Qd6 {[%clk 0:00:36.4]} 31. Nf3 {[%clk 0:00:10.4]} 31... Na6 {[%clk 0:00:34.4]}
32. Rxa5 {[%clk 0:00:10.4]} 32... Qb6 {[%clk 0:00:34.1]} 33. Rxe5 {[%clk
0:00:10.4]} 33... Rb1+ {[%clk 0:00:34]} 34. Kh2 {[%clk 0:00:11]} 34... Rb2
{[%clk 0:00:34.7]} 35. Qc3 {[%clk 0:00:10.8]} 35... Qb4 {[%clk 0:00:35.3]} 36.
Qxb4 {[%clk 0:00:04.8]} 36... Nxb4 {[%clk 0:00:36.2]} 37. Kg1 {[%clk 0:00:05.5]}
37... Rb1+ {[%clk 0:00:36]} 38. Kh2 {[%clk 0:00:05.7]} 38... Rb2 {[%clk
0:00:36.7]} 39. Kg1 {[%clk 0:00:05.8]} 39... Nd3 {[%clk 0:00:36.8]} 40. Re7
{[%clk 0:00:05.4]} 40... Rb1+ {[%clk 0:00:34.3]} 41. Kh2 {[%clk 0:00:05.2]}
41... Nxf2 {[%clk 0:00:34.9]} 42. g4 {[%clk 0:00:05.8]} 42... Rh1+ {[%clk
0:00:33]} 43. Kg3 {[%clk 0:00:06.2]} 43... Nd3 {[%clk 0:00:32.2]} 44. g5 {[%clk
0:00:06.4]} 44... Rf1 {[%clk 0:00:30.1]} 45. Rd7 {[%clk 0:00:06.7]} 45... Ne1
{[%clk 0:00:30.3]} 46. Ne5 {[%clk 0:00:06.8]} 46... Rg1 {[%clk 0:00:30.2]} 47.
Kf2 {[%clk 0:00:06.8]} 47... Rxg2+ {[%clk 0:00:29.9]} 48. Kxe1 {[%clk
0:00:07.5]} 48... Rxg5 {[%clk 0:00:28.8]} 49. Nxf7 {[%clk 0:00:07.9]} 49... Rg1+
{[%clk 0:00:28.6]} 50. Kf2 {[%clk 0:00:08.2]} 50... Ra1 {[%clk 0:00:29.3]} 51.
Ng5+ {[%clk 0:00:08.7]} 51... Kh6 {[%clk 0:00:29.9]} 52. Ne4 {[%clk 0:00:09.3]}
52... Ra2+ {[%clk 0:00:30.1]} 53. Kf3 {[%clk 0:00:09.8]} 53... g5 {[%clk
0:00:30.7]} 54. Nf6 {[%clk 0:00:08]} 54... Kg6 {[%clk 0:00:29.3]} 55. Nxh7
{[%clk 0:00:08.1]} 55... Rh2 {[%clk 0:00:26.3]} 56. Nf8+ {[%clk 0:00:07.6]}
56... Kf6 {[%clk 0:00:26.3]} 57. Ra7 {[%clk 0:00:07.5]} 57... Rh3+ {[%clk
0:00:23.9]} 58. Kf2 {[%clk 0:00:07.8]} 58... Kf5 {[%clk 0:00:24]} 59. Rf7+
{[%clk 0:00:06.2]} 59... Kg4 {[%clk 0:00:24.3]} 60. Ne6 {[%clk 0:00:05.7]} 60...
Rh2+ {[%clk 0:00:24.1]} 61. Kg1 {[%clk 0:00:05.8]} 61... Re2 {[%clk 0:00:24]}
62. Rg7 {[%clk 0:00:03.3]} 62... Rxe3 {[%clk 0:00:22.9]} 63. Nxg5 {[%clk
0:00:04]} 63... Rg3+ {[%clk 0:00:19.5]} 64. Kf2 {[%clk 0:00:04.2]} 64... Ra3
{[%clk 0:00:19.8]} 65. Ne4+ {[%clk 0:00:04.7]} 65... Kf5 {[%clk 0:00:20.3]} 66.
Ng3+ {[%clk 0:00:05]} 66... Kf6 {[%clk 0:00:20.4]} 67. Rg4 {[%clk 0:00:05.6]}
67... Ra2+ {[%clk 0:00:20]} 68. Kf3 {[%clk 0:00:06.2]} 68... Ra3+ {[%clk
0:00:20.4]} 69. Kf4 {[%clk 0:00:06.7]} 69... Ra4+ {[%clk 0:00:20.8]} 70. Ne4+
{[%clk 0:00:07.5]} 70... Ke6 {[%clk 0:00:21]} 71. Rg5 {[%clk 0:00:08.1]} 71...
Rb4 {[%clk 0:00:20.2]} 72. Re5+ {[%clk 0:00:08.5]} 72... Kf7 {[%clk 0:00:20.2]}
73. Kf5 {[%clk 0:00:09.2]} 73... Rb3 {[%clk 0:00:20.2]} 74. Ng5+ {[%clk
0:00:08.6]} 74... Kg7 {[%clk 0:00:20]} 75. Re7+ {[%clk 0:00:09.1]} 75... Kf8
{[%clk 0:00:20.7]} 76. Ra7 {[%clk 0:00:09.7]} 76... Rb5+ {[%clk 0:00:20.8]} 77.
Kf6 {[%clk 0:00:10.3]} 77... Ke8 {[%clk 0:00:19.3]} 78. Ne6 {[%clk 0:00:10.2]}
78... Rb1 {[%clk 0:00:17.9]} 79. Re7# {[%clk 0:00:10.6]} 1-0